Workbook

Sheet Меню 32,45 руб.!!
A2: Примерное цикличное десятидневное меню дополнительного питания для учащихся группы продленного дня образовательных учреждений Альметьевского муниципального района Республики Татарстан
A3: Наименование продуктов | B3: Выход,г | C3: Белки | D3: Жиры | E3: Угл-ды | F3: Энер.ценность (ККАЛ) | G3: В1 | H3: С | I3: А | J3: Е | K3: Са | L3: Р | M3: Mg | N3: Fe
A4: 1-ая неделя
A5: ПОНЕДЕЛЬНИК
A6: Щи из свежей капусты с мясными фрикадельками, со сметаной | B6: 250/10/10 | C6: 4.02 | D6: 7.62 | E6: 8.34 | F6: 125.56 | G6: 0.07 | H6: 15.87 | I6: 12.00 | J6: 2.44 | K6: 60.20 | L6: 75.87 | M6: 26.25 | N6: 1.00
A7: Чай с сахаром | B7: 190/10 | C7: 0.07 | D7: 0.02 | E7: 10.00 | F7: 40.00 | H7: 0.03 | K7: 10.95 | L7: 2.80 | M7: 1.40 | N7: 0.26
A8: Хлеб ржаной | B8: 30 | C8: 1.98 | D8: 0.36 | E8: 11.88 | F8: 59.40 | G8: 0.03 | H8: 0.00 | I8: 0.0 | J8: 0.28 | K8: 5.8 | L8: 30 | M8: 9.4 | N8: 0.78
A9: Итого: | B9: 500 | C9: =C6+C7+C8 -> 6.07 | D9: =D6+D7+D8 -> 8.00 | E9: 30.22 | F9: 224.96 | G9: 0.10 | H9: 15.90 | I9: 12.00 | J9: 2.72 | K9: 76.95 | L9: 108.67 | M9: 37.05 | N9: 2.04
A11: ВТОРНИК
A12: Суп картофельный с горохом и с мясными фрикадельками | B12: 250/10 | C12: 5.90 | D12: 6.45 | E12: 18.83 | F12: 170.45 | G12: 0.11 | H12: 5.99 | I12: 26.87 | J12: 1.72 | K12: 38.76 | L12: 88.63 | M12: 27.38 | N12: 1.36
A13: Компот из сухофруктов | B13: 200 | C13: 0.662 | D13: 0.09 | E13: 22.03 | F13: 92.9 | G13: 0.016 | H13: 0.726 | I13: 0 | J13: 0.508 | K13: 32.48 | L13: 23.44 | M13: 17.46 | N13: 0.698
A14: Хлеб ржаной | B14: 30 | C14: 1.98 | D14: 0.36 | E14: 11.88 | F14: 59.40 | G14: 0.03 | H14: 0.00 | I14: 0.0 | J14: 0.28 | K14: 5.8 | L14: 30 | M14: 9.4 | N14: 0.78
A15: Итого: | B15: 490 | C15: =SUM(C12:C14) -> 8.54 | D15: =SUM(D12:D14) -> 6.90 | E15: 52.74 | F15: 322.75 | G15: 0.16 | H15: 6.71 | I15: 26.87 | J15: 2.51 | K15: 77.04 | L15: 142.07 | M15: 54.24 | N15: 2.84
A17: СРЕДА
A18: Суп из овощей на курином бульоне с мясом птицы, со сметаной | B18: 250/10/10 | C18: 4.19 | D18: 8.34 | E18: 9.54 | F18: 137.65 | G18: 0.08 | H18: 10.65 | I18: 15.82 | J18: 2.45 | K18: 49.01 | L18: 71.78 | M18: 23.68 | N18: 0.98
A19: Напиток из шиповника | B19: 200 | C19: 0.678 | D19: 0.278 | E19: 10.76 | F19: 48.2 | G19: 0.012 | H19: 100 | I19: 0 | J19: 0.76 | K19: 21.34 | L19: 3.44 | M19: 3.44 | N19: 0.634
A20: Хлеб ржаной | B20: 30 | C20: 1.98 | D20: 0.36 | E20: 11.88 | F20: 59.40 | G20: 0.03 | H20: 0.00 | I20: 0.0 | J20: 0.28 | K20: 5.8 | L20: 30 | M20: 9.4 | N20: 0.78
A21: Итого: | B21: 500 | C21: =SUM(C18:C20) -> 6.85 | D21: =SUM(D18:D20) -> 8.98 | E21: 32.18 | F21: 245.25 | G21: 0.13 | H21: 110.65 | I21: 15.82 | J21: 3.49 | K21: 76.15 | L21: 105.22 | M21: 36.52 | N21: 2.40
A23: ЧЕТВЕРГ
A24: Суп молочный со звездочками | B24: 250 | C24: 5.47 | D24: 4.75 | E24: 17.96 | F24: 150.00 | G24: 0.09 | H24: 0.83 | I24: 33.00 | J24: 0.38 | K24: 163.00 | L24: 136.88 | M24: 26.68 | N24: 0.65
A25: Компот из сухофруктов | B25: 200 | C25: 0.66 | D25: 0.09 | E25: 22.03 | F25: 92.90 | G25: 0.02 | H25: 0.73 | I25: 0.00 | J25: 0.51 | K25: 32.48 | L25: 23.44 | M25: 17.46 | N25: 0.70
A26: Хлеб ржаной | B26: 30 | C26: 1.98 | D26: 0.36 | E26: 11.88 | F26: 59.40 | G26: 0.03 | H26: 0.00 | I26: 0.0 | J26: 0.28 | K26: 5.8 | L26: 30 | M26: 9.4 | N26: 0.78
A27: Итого: | B27: 480 | C27: =SUM(C24:C26) -> 8.11 | D27: =SUM(D24:D26) -> 5.20 | E27: =SUM(E24:E26) -> 51.87 | F27: =SUM(F24:F26) -> 302.30 | G27: =SUM(G24:G26) -> 0.14 | H27: =SUM(H24:H26) -> 1.55 | I27: =SUM(I24:I26) -> 33.00 | J27: =SUM(J24:J26) -> 1.16 | K27: =SUM(K24:K26) -> 201.28 | L27: =SUM(L24:L26) -> 190.32 | M27: =SUM(M24:M26) -> 53.54 | N27: =SUM(N24:N26) -> 2.13
A29: ПЯТНИЦА
A30: Рассольник ленинградский с мясом индейки, со сметаной | B30: 250/10/10 | C30: 4.58 | D30: 7.35 | E30: 12.05 | F30: 138.27 | G30: 0.11 | H30: 8.69 | I30: 4.26 | J30: 2.42 | K30: 35.11 | L30: 76.30 | M30: 26.53 | N30: 1.39
A31: Компот из изюма и яблок компот из яблок | B31: 200 | C31: 0.38 | D31: 0.13 | E31: 29.03 | F31: 119.94 | G31: 0.022 | J31: 0.076 | K31: 20.32 | L31: 19.36 | M31: 8.12 | N31: 0.45
A32: Хлеб ржаной | B32: 30 | C32: 1.98 | D32: 0.36 | E32: 11.88 | F32: 59.40 | G32: 0.03 | H32: 0.00 | I32: 0.0 | J32: 0.28 | K32: 5.8 | L32: 30 | M32: 9.4 | N32: 0.78
A33: Итого: | B33: 500 | C33: =SUM(C30:C32) -> 6.94 | D33: 7.84 | E33: 52.96 | F33: 317.61 | G33: 0.16 | H33: 8.69 | I33: 4.26 | J33: 2.77 | K33: 61.23 | L33: 125.66 | M33: 44.05 | N33: 2.62
A35: СУББОТА
A36: Суп картофельный с клецками и с куриными фрикадельками | B36: 250/10 | C36: 4.92 | D36: 5.91 | E36: 19.59 | F36: 164.85 | G36: 0.11 | H36: 5.85 | I36: 25.03 | J36: 1.65 | K36: 38.00 | L36: 82.64 | M36: 26.79 | N36: 1.29
A37: Кисель | B37: 200 | C37: 0.6 | D37: 0.1 | E37: 20.2 | F37: 83.6 | G37: 0.002 | H37: 1.1 | K37: 15.7 | L37: 16.3 | M37: 3.36 | N37: 0.37
A38: Хлеб ржаной | B38: 30 | C38: 1.98 | D38: 0.36 | E38: 11.88 | F38: 59.40 | G38: 0.03 | H38: 0.00 | I38: 0.0 | J38: 0.28 | K38: 5.8 | L38: 30 | M38: 9.4 | N38: 0.78
A39: Итого: | B39: 490 | C39: =SUM(C36:C38) -> 7.50 | D39: =SUM(D36:D38) -> 6.37 | E39: 51.67 | F39: 307.85 | G39: 0.15 | H39: 6.95 | I39: 25.03 | J39: 1.93 | K39: 59.50 | L39: 128.94 | M39: 39.55 | N39: 2.44
A40: Всего за 6 дней 1 недели: | B40: =B9+B15+B21+B27+B33+B39 -> 2960 | C40: =C9+C15+C21+C27+C33+C39 -> 44.01 | D40: =D9+D15+D21+D27+D33+D39 -> 43.29 | E40: =E9+E15+E21+E27+E33+E39 -> 271.63 | F40: =F9+F15+F21+F27+F33+F39 -> 1720.72 | G40: =G9+G15+G21+G27+G33+G39 -> 0.84 | H40: =H9+H15+H21+H27+H33+H39 -> 150.45 | I40: =I9+I15+I21+I27+I33+I39 -> 116.98 | J40: =J9+J15+J21+J27+J33+J39 -> 14.58 | K40: =K9+K15+K21+K27+K33+K39 -> 552.15 | L40: =L9+L15+L21+L27+L33+L39 -> 800.85 | M40: =M9+M15+M21+M27+M33+M39 -> 264.93 | N40: =N9+N15+N21+N27+N33+N39 -> 14.47
A41: 2-ая неделя
A42: ПОНЕДЕЛЬНИК
A43: Борщ из свежей капусты с мясом птицы, со сметаной | B43: 250/10/10 | C43: 4.40 | D43: 8.28 | E43: 11.33 | F43: 146.15 | G43: 0.06 | H43: 10.95 | I43: 15.82 | J43: 2.52 | K43: 63.89 | L43: 77.10 | M43: 29.05 | N43: 1.43
A45: Компот из сухофруктов | B45: 200 | C45: 0.662 | D45: 0.09 | E45: 22.03 | F45: 92.9 | G45: 0.016 | H45: 0.726 | I45: 0 | J45: 0.508 | K45: 32.48 | L45: 23.44 | M45: 17.46 | N45: 0.698
A46: Хлеб ржаной | B46: 30 | C46: 1.98 | D46: 0.36 | E46: 11.88 | F46: 59.40 | G46: 0.03 | H46: 0.00 | I46: 0.0 | J46: 0.28 | K46: 5.8 | L46: 30 | M46: 9.4 | N46: 0.78
A47: Итого: | B47: 500 | C47: =SUM(C43:C46) -> 7.04 | D47: =SUM(D43:D46) -> 8.73 | E47: 45.24 | F47: 298.45 | G47: 0.11 | H47: 11.68 | I47: 15.82 | J47: 3.31 | K47: 102.17 | L47: 130.54 | M47: 55.91 | N47: 2.91
A49: ВТОРНИК
A50: Суп картофельный с горохом, с мясными фрикадельками | B50: 250/10 | C50: 5.90 | D50: 6.45 | E50: 18.83 | F50: 170.45 | G50: 0.11 | H50: 5.99 | I50: 26.87 | J50: 1.72 | K50: 38.76 | L50: 88.63 | M50: 27.38 | N50: 1.36
A51: Компот из изюма и яблок компот из яблок | B51: 200 | C51: 0.38 | D51: 0.13 | E51: 29.03 | F51: 119.94 | G51: 0.022 | J51: 0.076 | K51: 20.32 | L51: 19.36 | M51: 8.12 | N51: 0.45
A52: Хлеб ржаной | B52: 30 | C52: 1.98 | D52: 0.36 | E52: 11.88 | F52: 59.40 | G52: 0.03 | H52: 0.00 | I52: 0.0 | J52: 0.28 | K52: 5.8 | L52: 30 | M52: 9.4 | N52: 0.78
A53: Итого: | B53: 490 | C53: =SUM(C50:C52) -> 8.26 | D53: =SUM(D50:D52) -> 6.94 | E53: 59.74 | F53: 349.79 | G53: 0.17 | H53: 5.99 | I53: 26.87 | J53: 2.07 | K53: 64.88 | L53: 137.99 | M53: 44.90 | N53: 2.59
A55: СРЕДА
A56: Рассольник ленинградский с куриными фрикадельками, со сметаной | B56: 250/10/10 | C56: 3.64 | D56: 7.91 | E56: 13.14 | F56: 144.05 | G56: 0.10 | H56: 8.52 | I56: 13.98 | J56: 2.40 | K56: 42.55 | L56: 73.24 | M56: 26.52 | N56: 1.06
A57: Кисель | B57: 200 | C57: 0.6 | D57: 0.1 | E57: 20.2 | F57: 83.6 | G57: 0.002 | H57: 1.1 | K57: 15.7 | L57: 16.3 | M57: 3.36 | N57: 0.37
A58: Хлеб ржаной | B58: 30 | C58: 1.98 | D58: 0.36 | E58: 11.88 | F58: 59.40 | G58: 0.03 | H58: 0.00 | I58: 0.0 | J58: 0.28 | K58: 5.8 | L58: 30 | M58: 9.4 | N58: 0.78
A59: Итого: | B59: 500 | C59: =C56+C57+C58 -> 6.22 | D59: =D56+D57+D58 -> 8.37 | E59: 45.22 | F59: 287.05 | G59: 0.14 | H59: 9.62 | I59: 13.98 | J59: 2.68 | K59: 64.05 | L59: 119.54 | M59: 39.28 | N59: 2.21
A61: ЧЕТВЕРГ
A62: Суп картофельный с пшенной крупой на бульоне из индейки, с индейкой | B62: 250/10 | C62: 4.51 | D62: 4.82 | E62: 12.15 | F62: 115.15 | G62: 0.11 | H62: 8.56 | I62: 3.26 | J62: 1.29 | K62: 31.78 | L62: 74.94 | M62: 25.04 | N62: 1.34
A63: Напиток из шиповника | B63: 200 | C63: 0.678 | D63: 0.278 | E63: 10.76 | F63: 48.2 | G63: 0.012 | H63: 100 | I63: 0 | J63: 0.76 | K63: 21.34 | L63: 3.44 | M63: 3.44 | N63: 0.634
A64: Хлеб ржаной | B64: 30 | C64: 1.98 | D64: 0.36 | E64: 11.88 | F64: 59.40 | G64: 0.03 | H64: 0.00 | I64: 0.0 | J64: 0.28 | K64: 5.8 | L64: 30 | M64: 9.4 | N64: 0.78
A65: Итого: | B65: 490 | C65: =SUM(C62:C64) -> 7.17 | D65: =SUM(D62:D64) -> 5.46 | E65: 34.79 | F65: =SUM(F62:F64) -> 222.75 | G65: 0.15 | H65: 108.56 | I65: 3.26 | J65: 2.33 | K65: 58.92 | L65: 108.38 | M65: 37.88 | N65: 2.75
A67: ПЯТНИЦА
A68: Суп-лапша домашняя с мясом птицы | B68: 250/10 | C68: 4.91 | D68: 7.40 | E68: 11.65 | F68: 141.95 | G68: 0.05 | H68: 0.74 | I68: 18.32 | J68: 2.67 | K68: 33.91 | L68: 54.90 | M68: 12.70 | N68: 0.84
A69: Чай с сахаром и с лимоном | B69: 185/10/5 | C69: 0.115 | D69: 0.025 | E69: 10.15 | F69: 41.7 | G69: 0.002 | H69: 2.03 | I69: 0 | J69: 0.01 | K69: 12.95 | L69: 3.9 | M69: 2 | N69: 0.29
A70: Хлеб ржаной | B70: 30 | C70: 1.98 | D70: 0.36 | E70: 11.88 | F70: 59.40 | G70: 0.03 | H70: 0.00 | I70: 0.0 | J70: 0.28 | K70: 5.8 | L70: 30 | M70: 9.4 | N70: 0.78
A71: Итого: | B71: 490 | C71: =SUM(C68:C70) -> 7.00 | D71: =SUM(D68:D70) -> 7.78 | E71: 33.68 | F71: 243.05 | G71: 0.09 | H71: 2.77 | I71: 18.32 | J71: 2.96 | K71: 52.66 | L71: 88.80 | M71: 24.10 | N71: 1.91
A73: СУББОТА
A74: Солянка по-домашнему | B74: 250 | C74: 8.03 | D74: 9.15 | E74: 7.19 | F74: 168.63 | G74: 0.01 | H74: 0.75 | I74: 0.00 | J74: 1.15 | K74: 22.58 | L74: 12.48 | M74: 5.53 | N74: 0.20
A75: Компот из сухофруктов | B75: 200 | C75: 0.662 | D75: 0.09 | E75: 22.03 | F75: 92.9 | G75: 0.016 | H75: 0.726 | I75: 0 | J75: 0.508 | K75: 32.48 | L75: 23.44 | M75: 17.46 | N75: 0.698
A76: Хлеб ржаной | B76: 30 | C76: 1.98 | D76: 0.36 | E76: 11.88 | F76: 59.40 | G76: 0.03 | H76: 0.00 | I76: 0.0 | J76: 0.28 | K76: 5.8 | L76: 30 | M76: 9.4 | N76: 0.78
A77: Итого: | B77: 480 | C77: =C74+C75+C76 -> 10.67 | D77: =D74+D75+D76 -> 9.60 | E77: 41.10 | F77: 320.93 | G77: 0.06 | H77: 1.48 | I77: 0.00 | J77: 1.94 | K77: 60.86 | L77: 65.92 | M77: 32.39 | N77: 1.68
A78: Всего за 6 дней 2 недели: | B78: =B47+B53+B59+B65+B71+B77 -> 2950 | C78: =C47+C53+C59+C65+C71+C77 -> 46.37 | D78: 46.88 | E78: 259.76 | F78: 1722.02 | G78: 0.71 | H78: 140.08 | I78: 78.25 | J78: 15.29 | K78: 403.53 | L78: 651.15 | M78: 234.45 | N78: 14.05
A79: Всего за 12 дней: | B79: =B40+B78 -> 5910 | C79: =C40+C78 -> 90.38 | D79: 90.17 | E79: 531.39 | F79: 3442.74 | G79: 1.55 | H79: 290.53 | I79: 195.23 | J79: 29.87 | K79: 955.69 | L79: 1452.00 | M79: 499.38 | N79: 28.52
A80: В среднем на 1 учащегося в день | B80: =B79/12 -> 493 | C80: =C79/12 -> 7.53 | D80: 7.51 | E80: 44.28 | F80: 286.90 | G80: 0.13 | H80: 24.21 | I80: 16.27 | J80: 2.49 | K80: 79.64 | L80: 121.00 | M80: 41.62 | N80: 2.38
